Cogmind - Beta 13 @@@ ROGUE MODE // 2024.04.18 @ 20:40:45 Player: Exceptionally Mediocre Result: Destroyed by Autobeam Turret with Autobeam Performance ------------- Evolutions (0) 0 Regions Visited (2) 400 Robots Destroyed (36) 180 Value Destroyed (765) 765 Prototype IDs (0) 0 Alien Tech Used (0) 0 Bonus (0) 0 TOTAL SCORE: 1345 Bonus ------- None Cogmind --------- Core Integrity 0/250 Matter 231/300 Energy 250/250 System Corruption 2% Temperature Cool (18) Movement Rolling (131) Ox3 Location -10/Subcaves Parts ------- > --- POWER (1) -------- Ion Engine > --- PROPULSION (2) --- Wheel Subdweller Monowheel > --- UTILITY (2) ------ Huge Storage Unit Targeting Computer > --- WEAPON (2) ------- Subdweller Beam Cannon (fused) Subdweller Machine Gun > --- INVENTORY (25) --- Light Ion Engine Subdweller Power Source Light Nuclear Core Spiked Treads Wheel Subdweller Monowheel Subdweller Monowheel High-capacity Matter Pod (200) Weight Redist. System Subdweller Optics Signal Interpreter Power Shielding Hacking Suite Medium Laser Medium Laser Subdweller Laser Subdweller Beam Cannon Light Assault Rifle Light Assault Rifle Subdweller Machine Gun Barrage Gun Mining Laser Multitool Peak State ------------ > --- POWER ------------ Subdweller Power Source > --- PROPULSION ------- Subdweller Monowheel Subdweller Monowheel > --- UTILITY ---------- Huge Storage Unit Targeting Computer > --- WEAPON ----------- Subdweller Beam Cannon Subdweller Machine Gun > --- INVENTORY -------- Ion Engine Subdweller Power Source Light Nuclear Core Spiked Treads Wheel Compact Wheel Subdweller Monowheel Subdweller Monowheel High-capacity Matter Pod Weight Redist. System Subdweller Optics Signal Interpreter Power Shielding Hacking Suite Medium Laser Medium Laser Subdweller Laser Subdweller Beam Cannon Light Assault Rifle Light Assault Rifle Subdweller Machine Gun Barrage Gun Mining Laser Multitool [Rating: 16] Favorites ----------- Power Light Ion Engine Engine Light Ion Engine Propulsion Light Treads Treads Light Treads Wheel Wheel Utility Targeting Computer Device Improved Terrain Scanner Storage Huge Storage Unit Processor Targeting Computer Weapon Assault Rifle Energy Gun Medium Laser Energy Cannon Beam Cannon Ballistic Gun Assault Rifle Launcher Subdweller Shrapnel Launcher Build | -11 -10 -10 ------- Run | Yrd Mat Sub Slots Evolved . | . . . Power . | . . . Propulsion . | . . . Utility . | . . . Weapon . | . . . Parts Attached 49 | 8 19 22 Power 12 | 1 3 8 Engine 12 | 1 3 8 Core . | . . . Reactor . | . . . Propulsion 16 | 2 7 7 Treads 7 | 2 4 1 Leg . | . . . Wheel 9 | . 3 6 Hover . | . . . Flight . | . . . Utility 6 | 2 4 . Device 1 | 1 . . Storage 4 | 1 3 . Processor 1 | . 1 . Hackware . | . . . Protection . | . . . Artifact . | . . . Weapon 15 | 3 5 7 Energy Gun 3 | 1 . 2 Energy Cannon 2 | . 1 1 Ballistic Gun 9 | 2 4 3 Ballistic Cannon . | . . . Launcher 1 | . . 1 Special Weapon . | . . . Impact Weapon . | . . . Slashing Weapon . | . . . Piercing Weapon . | . . . Special Melee Weapon . | . . . Unidentified Prototypes . | . . . Parts Lost 17 | . 3 14 Power 5 | . . 5 Propulsion 6 | . 2 4 Utility 1 | . 1 . Weapon 5 | . . 5 Highest Loss Streak 7 | . 1 7 To Critical Strikes 1 | . . 1 Average Slot Usage (%) 99 | . 99 99 Engine 14 | . 14 14 Treads 16 | . 23 3 Wheel 11 | . 4 24 Device 2 | . 3 . Storage 14 | . 14 14 Processor 11 | . 10 14 Energy Gun 2 | . . 6 Energy Cannon 9 | . 11 6 Ballistic Gun 14 | . 16 11 Naked Turns . | . . . Heaviest Build 97 | 13 88 97 Greatest Support 40 | 40 40 40 Greatest Overweight (x) 5 | 3 2 5 Average Overweight (x) 1 | . 1 2 Largest Inventory Capacity 25 | 8 25 25 Average Capacity 20 | 7 18 25 Most Carried 25 | 8 20 25 Average Carried 16 | 2 16 19 Final Capacity 25 | 8 25 25 Final Carried 23 | 8 20 23 Class Distribution -------------------- 65% | Mutant 34% | Scavenger-Mutant Dominant Class ---------------- Mutant | -10/Materials Mutant | -10/Subcaves Resources | -11 -10 -10 ----------- Run | Yrd Mat Sub Matter Collected 1327 | 311 688 328 Remotely . | . . . Salvage Created 1146 | 127 833 186 Parts 75 | 13 48 14 Haulers Intercepted 2 | . 2 . Recyclers Shooed 2 | . 2 . Parts Field Recycled . | . . . Retrieved Matter . | . . . Parts Self-Destructed 5 | . . 5 Prevented . | . . . Kills | -11 -10 -10 ------- Run | Yrd Mat Sub Combat Hostiles Destroyed 18 | . 11 7 Guns 10 | . 7 3 Cannons 5 | . 4 1 AOE 3 | . . 3 Classes Destroyed 10 | 3 6 1 Worker 1 | 1 . . Builder 2 | . 2 . Tunneler 4 | 3 1 . Hauler 2 | . 2 . Recycler 4 | 1 3 . Operator 2 | . 2 . Watcher 3 | . 3 . Swarmer 3 | . 3 . Grunt 8 | . 8 . Subdweller 7 | . . 7 Best Kill Streak 4 | 3 4 2 Combat Bots Only 3 | . 3 2 Max Kills in Single Turn 1 | 1 1 1 Gunslinging . | . . . Exploded 1 | . . 1 Melee . | . . . Uniques/NPCs Destroyed . | . . . Combat | -11 -10 -10 -------- Run | Yrd Mat Sub Hostile Shots Fired 127 | . 61 66 Missed 32 | . 11 21 Damage Taken 1707 | . 620 1087 Core 251 | . 35 216 Absorbed by Shields . | . . . Core Remaining (%) 100 | 100 . . Volleys Fired 100 | 9 67 24 Largest 2 | 2 2 2 Hottest 110 | 40 80 110 Shots Fired 191 | 18 134 39 Gun 126 | 18 83 25 Cannon 55 | . 51 4 Launcher 10 | . . 10 Special . | . . . Kinetic 125 | 18 83 24 Thermal 66 | . 51 15 Explosive . | . . . Electromagnetic . | . . . Robot Hit Streak 21 | 7 14 21 Robot Miss Streak 4 | 2 4 1 Penetration Max . | . . . Secondary Targets . | . . . Shots Hit Robots 129 | 10 86 33 Core Hits 50 | 6 33 11 Critical Kills . | . . . Critical Parts Destroyed . | . . . Critical Strikes 3 | . . 3 Burn 3 | . . 3 Melee Attacks . | . . . Impact . | . . . Slashing . | . . . Piercing . | . . . Sneak Attacks . | . . . Combat Hostiles . | . . . Follow-up Attacks . | . . . Damage Inflicted 2325 | 140 1285 900 Guns 1264 | 140 777 347 Cannons 570 | . 508 62 Explosions 491 | . . 491 Melee . | . . . Ramming . | . . . Kinetic 1614 | 140 777 697 Thermal 711 | . 508 203 Explosive . | . . . Electromagnetic . | . . . Impact . | . . . Slashing . | . . . Piercing . | . . . Highest Corruption 2 | . 2 2 Average Corruption 1 | . 1 2 Corruption Purged . | . . . Corruption Blocked . | . . . Effects 26 | . 16 10 Message Errors 4 | . 2 2 Matter Fused 7 | . 6 1 Heat Flow Errors 3 | . 3 . Energy Discharges 5 | . 2 3 Parts Fused 1 | . . 1 Data Loss (minor) 2 | . 1 1 Data Loss (major) 3 | . 2 1 Weapon Failures 1 | . . 1 Overload Shots . | . . . Overflow Damage 37 | . 30 7 Projectiles 30 | . 30 . Explosions 7 | . . 7 Melee . | . . . Knockbacks . | . . . Impact . | . . . Kinetic . | . . . Secondary . | . . . Self-Inflicted Damage 157 | . . 157 Shots 5 | . . 5 Rammed . | . . . Targets Rammed . | . . . Kicked . | . . . Crushed . | . . . Highest Temperature 249 | . 249 6 Average Temperature 51 | . 52 3 Received Heat Transfer 534 | . 264 270 Siege Activations . | . . . Robots Corrupted . | . . . Combat Hostiles . | . . . Parts Fried . | . . . Impact Corruptions . | . . . Robots Melted . | . . . Combat Hostiles . | . . . Parts Melted 3 | . 1 2 Heat Transferred 1813 | . 1073 740 Parts Sabotaged . | . . . Parts Stolen . | . . . Parts Stripped . | . . . Power Chain Reactions . | . . . Alert | -11 -10 -10 ------- Run | Yrd Mat Sub Peak Influence 214 | 25 214 . Initial 16 | . 16 . Average 54 | 9 58 . Maximum Alert Level 1 | . 1 . Low Security (%) 98 | 100 98 . Level 1 1 | . 1 . Level 2 . | . . . Level 3 . | . . . Level 4 . | . . . Level 5 . | . . . High Security . | . . . Max Security . | . . . Squads Dispatched 2 | . 2 . Investigation . | . . . Extermination . | . . . Reinforcement 2 | . 2 . Assault . | . . . Garrison . | . . . Intercept . | . . . Searches Triggered . | . . . Construction Impeded . | . . . Haulers Reinforced . | . . . Active Scanning Responses . | . . . Cargo Convoy Interrupts . | . . . Stealth | -11 -10 -10 --------- Run | Yrd Mat Sub Distress Signals . | . . . Communications Jammed . | . . . Distress Signals . | . . . Times Spotted 30 | . 18 12 Peak Tracking Total 4 | . 4 4 Tactical Retreats 1 | . . 1 Traps | -11 -10 -10 ------- Run | Yrd Mat Sub Traps Triggered 3 | . 3 . Indirectly . | . . . Trap Hack Attempts . | . . . Triggered . | . . . Disarmed . | . . . Reprogrammed . | . . . Reused . | . . . Traps Extracted . | . . . Installed . | . . . Triggered . | . . . Machines | -11 -10 -10 ---------- Run | Yrd Mat Sub Machines Disabled 1 | . 1 . Max in Single Turn 1 | . 1 . Machines Repaired . | . . . Machines Dismantled . | . . . Machines Sabotaged . | . . . Overloaded Fab Kills . | . . . Hacking | -11 -10 -10 --------- Run | Yrd Mat Sub Machines Accessed 3 | . 2 1 Terminals 1 | . 1 . Fabricators . | . . . Repair Stations . | . . . Recycling Units 1 | . 1 . Scanalyzers . | . . . Garrison Access . | . . . Total Hacks 11 | . 3 8 Successful 10 | . 2 8 Failed 1 | . 1 . Catastrophic . | . . . Database Lockouts . | . . . Manual 2 | . 2 . Terminals 2 | . 2 . Fabricators . | . . . Repair Stations . | . . . Recycling Units 1 | . 1 . Scanalyzers . | . . . Garrison Access . | . . . Terminal Hacks 8 | . . 8 Record 8 | . . 8 Fabricator Hacks . | . . . Repair Station Hacks . | . . . Recycling Unit Hacks 1 | . 1 . Retrieve Components 1 | . 1 . Scanalyzer . | . . . Garrison Access Hacks . | . . . Unauthorized Hacks 1 | . 1 . Terminals 1 | . 1 . Botnet 1 | . 1 . Fabricators . | . . . Repair Stations . | . . . Recycling Units . | . . . Scanalyzers . | . . . Garrison Access . | . . . Data Cores Recovered . | . . . Used . | . . . Hacking Detections 1 | . 1 . Full Trace Events . | . . . Feedback Events . | . . . Feedback Blocked . | . . . Robot Schematics Acquired . | . . . Robots Built . | . . . Authchips . | . . . Time . | . . . Total Robot Build Rating . | . . . Part Schematics Acquired . | . . . Parts Built . | . . . Authchips . | . . . Time . | . . . Total Part Build Rating . | . . . Parts Repaired . | . . . Time . | . . . Parts Recycled . | . . . Recycled Matter . | . . . Retrieved Matter . | . . . Retrieved Components 10 | . 10 . Parts Scanalyzed . | . . . Part Schematics Acquired . | . . . Parts Damaged . | . . . Bothacking | -11 -10 -10 ------------ Run | Yrd Mat Sub Used RIF Installer . | . . . Robots Hacked . | . . . Non-combat . | . . . Combat . | . . . Robot Hacks Applied . | . . . Relay Couplers Released . | . . . Fabnet Peak Effective % . | . . . Robots Rewired . | . . . Allies Hacked . | . . . Hacks Repelled . | . . . Allies | -11 -10 -10 -------- Run | Yrd Mat Sub Total Allies . | . . . Largest Group . | . . . Highest-Rated Group . | . . . Highest-Rated Ally . | . . . Total Orders . | . . . Ally Attacks . | . . . Total Damage . | . . . Kills . | . . . Allies Corrupted . | . . . Allies Melted . | . . . Intel | -11 -10 -10 ------- Run | Yrd Mat Sub Robot Analysis Total . | . . . Derelict Logs Recovered 3 | . . 3 Drone Launches . | . . . Drone Recoveries . | . . . Exploration | -11 -10 -10 ------------- Run | Yrd Mat Sub Turns Passed 2851 | 145 1810 896 Spaces Moved 1365 | 65 756 544 Core 13 | 13 . . Treads 652 | 52 574 26 Legs . | . . . Wheels 700 | . 182 518 Hover . | . . . Flight . | . . . Fastest Speed 50 | 50 105 130 Average Speed 177 | 151 205 141 Slowest Speed 480 | 200 320 480 Overloaded Moves . | . . . Propulsion Burnouts . | . . . Robots Hopped . | . . . Cave-ins Triggered . | . . . Exploration Rate (%) 47 | 4 97 41 Regions Visited 2 Branch Regions 1 Pre-discovered Areas 3 | . . 3 Known Exits Taken . | . . . Unknown Exits Taken 2 | 1 1 . Scrap Searched 4 | . . 4 Spaces Dug 10 | . . 10 Terrain Destroyed 112 | . . 112 Melee . | . . . Projectile . | . . . AOE 112 | . . 112 Terrain Rammed . | . . . Walls Destroyed . | . . . Machines Disabled . | . . . Actions | -11 -10 -10 --------- Run | Yrd Mat Sub Total 1605 | 90 886 629 Wait 23 | . 9 14 Move 1363 | 64 755 544 Hop . | . . . Pick Up 51 | 9 22 20 Fast Attach 10 | 6 4 . Attach 21 | 1 4 16 Detach 2 | . 1 1 Swap 18 | 1 11 6 Drop 17 | . 13 4 Fire 100 | 9 67 24 Melee . | . . . Ram . | . . . Kick . | . . . Crush . | . . . Escape Stasis . | . . . Rewire . | . . . Trap . | . . . Miscellaneous . | . . . Route ------- -11/Scrapyard -10/Materials (discovered 6 exits: [*Mat x3] / [*Min x2] / *Sub) -10/Subcaves (discovered 2 exits: [*Mat] / [*Rec]) History --------- Turn | Location | Event 23 | -11/Scrapyard | Discovered new exit (range 16) 146 | -11/Scrapyard | Entered Materials 230 | -10/Materials | Discovered new exit (range 11) 303 | -10/Materials | Discovered new exit (range 9) 304 | -10/Materials | Build established: Mutant 1068 | -10/Materials | Discovered new exit (range 15) 1576 | -10/Materials | Discovered new exit (range 11) 1707 | -10/Materials | Build established: Scavenger-Mutant 1911 | -10/Materials | Discovered new exit (range 13) 1940 | -10/Materials | Discovered new exit (range 6) 1956 | -10/Materials | Entered Subcaves 2069 | -10/Subcaves | Core integrity fell below 50% 2101 | -10/Subcaves | Lost 7 parts (1p3n3w) 2101 | -10/Subcaves | Learned location of Zion (-7) 2132 | -10/Subcaves | Learned 4 Materials zone layouts 2178 | -10/Subcaves | Met a Zionite searching for "candidates" 2182 | -10/Subcaves | Shifting Twisted Machinery released Sub. Machine Gun 2234 | -10/Subcaves | Ambushed by Subdweller buried in earth 2275 | -10/Subcaves | Core integrity fell below 20% 2298 | -10/Subcaves | Build established: Mutant 2307 | -10/Subcaves | Lost 6 parts (3p1n2w) 2319 | -10/Subcaves | Learned Materials security intel 2537 | -10/Subcaves | Discovered new exit (range 14) 2570 | -10/Subcaves | Visited Clippyterm 2574 | -10/Subcaves | Learned location of Extension (-4) 2574 | -10/Subcaves | Learned Factory fabricator intel 2574 | -10/Subcaves | Learned Research machine intel 2778 | -10/Subcaves | Build established: Scavenger-Mutant 2851 | -10/Subcaves | Discovered new exit (range 12) 2852 | -10/Subcaves | Destroyed by Autobeam Turret with Autobeam Last Messages --------------- for is frequently seen in Scraptown. 02596_ System corrupted: Sub. Beam Cannon fused. 02611_ System corrupted: Substantial component data lost. 02645_ Subatomizers dissect the Wheel. 02645_ Acquired 22 matter. 02652_ Acquired Lgt. Ion Engine. 02653_ Acquired 16 matter. 02656_ Dropped Com. Wheel. 02656_ Acquired Wheel. 02662_ Dropped Sub. Monowheel. 02662_ Acquired Sub. Monowheel. 02678_ I36%1RSNOTBZ:BO%HSNS& 02771_ Sub. Power Source shoots sparks and powers down. 02809_ Sub. Monowheel shoots sparks and powers down. 02810_ Dropped Broken Sub. Power Source. 02813_ Dropped Broken Sub. Monowheel. 02851_ EXIT=FOUND Map ----- +----------------------------------------------------+ | ?????????????????????????????????????????????????? | | ?????????????????????????????????????????????????? | | ?????????????????????????????????????????????????? | | ?????????????????????????????????????????????????? | | ?????????????????????????????????????????????????? | | ?????????????????????????????????????????????????? | | ?????????????????????????????????????????????????? | | ?????????????????????????????????????????????????? | | ?????????????????????????????????????????????????? | | ?????????????????????????????????????????????????? | | ????? ?????????????????????????????????????????? | | ????? ?????????????????????????????????????????? | | ????? ?????????????????????????????????????????? | | ????? ?????????????????????????????????????????? | | ?????# ??????????????????????? ????????????????? | | ?????# ?###?????????????????? ????????????????? | | ????## #?# ##???????????????? ????????????????? | | ????# ### #####???????##### ?????????????????? | | ????# ##??????# ??????????????????? | | #???# ? ##????## ???????????????????? | | ??## #??# #?#### ?????????????????????? | | ?## #???# ### #??????????????????????? | | ## #??## ### #??????????????????????? | | ## #### # ###????????????????????? | | ## #????????????????????? | | @ #????????????????????? | | ## #????????????????????? | | ####### #????????????????????? | | ## #####?????# #????????????????????? | | ##### ####?????????# #????????#######?????? | | ##???####???????????? s????????#"""""#?????? | | ##???????????????????? ???????#""X""#?????? | | #????????????????????? ??????#" "#?????? | | ##???????????????????? t t "#?????### ###?????? | | *= #???????????????????? " " "#?????### ####????? | | #????????????????????"" """"#????## # ##?### | | #????????????????????##<#######?## ### # | | ####???????????????#######?## ### #### | | # ##?????????????## ### ## < | | ## #?????????????# ### ### | | ?# ###?????????????## #### # ##?## | | ?# #????????????????## #?# ###### ######???? | | ## #?????????????????# ### #????## ##????????? | | ## #?????????????????# ## ##????###?????????? | | #????????????????## #????????????????? | | ##???????????????# #??###???????????? | | ## ##??????????????## #?## #???????????? | | ### #???????????????## ### #???????????? | | ### #????????????????# ## #???????????? | | #????????????????## ##???????????? | +----------------------------------------------------+ Best States ------------- Heat Dissipation 25 Energy Generation 15 Energy Capacity 250 Matter Stores 300 Matter Capacity 300 Sight Range 16 Terrain Scan Range 16 Terrain Scan Density 10 Evasion (%) 40 Targeting Accuracy 5 Recoil Reduction 2 Item Schematics ----------------- None Robot Schematics ------------------ None Fabricated ------------ Nothing Alien Tech Used ----------------- None Achievements -------------- None Challenges ------------ None Game ------ Seed SchematicLobotomyClaw Manual? 0 Play Time 00:19:45 Cumulative 77.6 hours Start 2024.04.18 @ 20:23:41 End 2024.04.18 @ 20:40:45 Sessions 1 Manual Loads 0 Difficulty Rogue Special Mode None Game No. 95 Rogue 95 Adventurer 0 Explorer 0 Win Type - Total 0 Types 0/0/0/0/0/0/0/0/0 Lore% 20 Gallery% 45 Achievement% 30 Wizard Run 0 Options --------- Layout 1 ASCII 0 Keyboard 1 Movement Vi Keybinds 0 Fullscreen 1 Font 24/Smallcaps Map View 50x35 Zoom Use 0% Tactical HUD 1 Map Filters NONE Filters NONE Steam 1 RUN: 95e47144-e7a2-4a27-b135-f3ca563fade8